fUSD/lending_fUSD_20260115
["ID","MTS","AMOUNT","RATE_DAILY","PERIOD"]
[402079543,1768512640142,-500.0,0.00016555,2]
[402079544,1768512640151,-500.0,0.00016555,2]
[402079545,1768512640161,-500.0,0.00016555,2]
[402079546,1768512640170,-500.0,0.00016555,2]
[402079547,1768512640179,-500.0,0.00016555,2]
[402079548,1768512640189,-500.0,0.00016555,2]
[402079549,1768512640198,-500.0,0.00016555,2]
[402079550,1768512640207,-500.0,0.00016555,2]
[402079551,1768512640216,-500.0,0.00016555,2]
[402079552,1768512640226,-341.67884985,0.00016555,2]
[402079553,1768512640236,-500.0,0.00016555,2]
[402079554,1768512640245,-500.0,0.00016555,2]
[402079555,1768512640255,-500.0,0.00016555,2]
[402079556,1768512640264,-500.0,0.00016555,2]
[402079557,1768512640274,-500.0,0.00016555,2]
[402079558,1768512640283,-500.0,0.00016555,2]
[402079559,1768512640293,-500.0,0.00016555,2]
[402079560,1768512640302,-444.66179987,0.00016555,2]
[402079561,1768512640312,-388.9480856,0.00016555,2]
[402079562,1768512640321,-500.0,0.00016555,2]
[402079564,1768512640331,-500.0,0.00016555,2]
[402079565,1768512640341,-500.0,0.00016555,2]
[402079566,1768512640350,-500.0,0.00016555,2]
[402079567,1768512640364,-500.0,0.00016555,2]
[402079568,1768512640374,-500.0,0.00016555,2]
[402079569,1768512640383,-500.0,0.00016555,2]
[402079570,1768512640392,-500.0,0.00016555,2]
[402079571,1768512640402,-500.0,0.00016555,2]
[402079572,1768512640411,-500.0,0.00016555,2]
[402079573,1768512640421,-500.0,0.00016555,2]
[402079574,1768512640433,-500.0,0.00016555,2]
[402079575,1768512640442,-500.0,0.00016555,2]
[402079576,1768512640451,-500.0,0.00016555,2]
[402079577,1768512640461,-500.0,0.00016555,2]
[402079578,1768512640470,-500.0,0.00016555,2]
[402079579,1768512640479,-420.0,0.00016577,2]
[402079580,1768512640489,-16887.39851566,0.00016579,2]
[402079581,1768512640498,-200.0,0.0001662,2]
[402079582,1768512640508,-510.0,0.00016649,2]
[402079583,1768512640517,-500.0,0.00016656,2]
[402079584,1768512640527,-500.0,0.00016656,2]
[402079585,1768512640536,-500.0,0.00016656,2]
[402079586,1768512640546,-500.0,0.0001666,2]
[402079587,1768512640555,-1680.0,0.00016661,2]
[402079588,1768512640565,-166.66,0.00016667,2]
[402079589,1768512640575,-172.71,0.00016712,2]
[402079590,1768512640584,-500.0,0.00016728,2]
[402079591,1768512640594,-31041.38200135,0.00016731,2]
[402079592,1768512640603,-54760.67730294,0.00016731,2]
[402079593,1768512640612,-81918.69822421,0.00016731,2]
[402079594,1768512640622,-110838.9051,0.00016731,2]
[402079595,1768512640632,-245.2,0.00016761,2]
[402079596,1768512640641,-15075.63577265,0.00016761,2]
[402079597,1768512640650,-16887.39851566,0.00016768,2]
[402079598,1768512640659,-200.0,0.00016786,2]
[402079599,1768512640668,-500.0,0.00016798,2]
[402079600,1768512640678,-1756.5,0.00016829,2]
[402079601,1768512640688,-500.0,0.0001686,2]
[402079602,1768512640698,-230421.33907942,0.00016885,2]
[402079604,1768512640707,-8969.76,0.00016922,2]
[402079606,1768512640716,-1174.96,0.00016922,2]
[402079608,1768512640726,-9999.99,0.00016922,2]
[402079610,1768512640735,-5789.0,0.00016939,2]
[402079612,1768512640744,-5789.0,0.00016944,2]
[402079614,1768512640754,-200.0,0.00016954,2]
[402079616,1768512640763,-16887.39851566,0.00016957,2]
[402079618,1768512640772,-5789.0,0.00016966,2]
[402079620,1768512640781,-169.26261672,0.00016973,2]
[402079622,1768512640791,-500.0,0.00016973,2]
[402079624,1768512640800,-500.0,0.00016973,2]
[402079626,1768512640810,-500.0,0.00016973,2]
[402079628,1768512640819,-500.0,0.00016973,2]
[402079630,1768512640829,-500.0,0.00016973,2]
[402079632,1768512640838,-500.0,0.00016973,2]
[402079634,1768512640847,-315.46484689,0.00016973,2]
[402079636,1768512640857,-511.23980469,0.00016973,2]
[402079638,1768512640867,-500.0,0.00016973,2]
[402079640,1768512640876,-500.0,0.00016973,2]
[402079642,1768512640886,-500.0,0.00016973,2]
[402079644,1768512640897,-501.61274464,0.00016973,2]
[402079646,1768512640906,-500.0,0.00016973,2]
[402079648,1768512640915,-500.0,0.00016973,2]
[402079650,1768512640925,-500.0,0.00016973,2]
[402079652,1768512640934,-500.0,0.00016973,2]
[402079654,1768512640943,-500.0,0.00016973,2]
[402079656,1768512640952,-500.0,0.00016973,2]
[402079658,1768512640961,-500.0,0.00016973,2]
[402079660,1768512640970,-500.0,0.00016973,2]
[402079662,1768512640981,-165.87138699,0.00016973,2]
[402079664,1768512640990,-500.0,0.00016973,2]
[402079666,1768512641000,-543.38282097,0.00016973,2]
[402079668,1768512641012,-500.0,0.00016973,2]
[402079670,1768512641022,-500.0,0.00016973,2]
[402079672,1768512641032,-500.0,0.00016973,2]
[402079674,1768512641042,-500.0,0.00016973,2]
[402079676,1768512641052,-500.0,0.00016973,2]
[402079678,1768512641061,-500.0,0.00016973,2]
[402079680,1768512641070,-500.0,0.00016973,2]
[402079682,1768512641079,-5789.0,0.00016974,2]
[402079683,1768512641088,-250.0,0.00017,2]
[402079684,1768512641098,-446.97,0.00017,2]
[402079685,1768512641107,-500.0,0.00017002,2]
[402079686,1768512641116,-200.0,0.00017003,2]
[402079687,1768512641126,-200.0,0.00017003,2]
[402079688,1768512641135,-500.0,0.00017003,2]
[402079689,1768512641144,-5789.0,0.00017039,2]
[402079690,1768512641153,-5789.0,0.00017075,2]
[402079691,1768512641162,-1756.5,0.00017103,2]
[402079692,1768512641172,-200.0,0.00017123,2]
[402079693,1768512641181,-16887.39851566,0.00017145,2]
[402079694,1768512641191,-5789.0,0.000172,2]
[402079695,1768512641200,-223.20330314,0.0001721,2]
[402079696,1768512641210,-5789.0,0.00017226,2]
[402079697,1768512641219,-446.97,0.00017274,2]
[402079698,1768512641228,-540.66681905,0.00017276,2]
[402079699,1768512641237,-16887.39851566,0.00017334,2]
[402079700,1768512641246,-500.0,0.00017364,2]
[402079701,1768512641255,-5789.0,0.00017374,2]
[402079702,1768512641265,-1756.5,0.00017377,2]
[402079703,1768512641274,-658.99,0.00017389,2]
[402079704,1768512641283,-2404.09081455,0.00017405,2]
[402079705,1768512641292,-5789.0,0.00017408,2]
[402079706,1768512641302,-1006.00992652,0.00017521,2]
[402079707,1768512641312,-1002.71264906,0.00017521,2]
[402079708,1768512641321,-1000.0,0.00017521,2]
[402079709,1768512641330,-1000.0,0.00017521,2]
[402079710,1768512641339,-1000.0,0.00017521,2]
[402079711,1768512641349,-500.0,0.00017521,2]
[402079712,1768512641361,-1000.0,0.00017521,2]
[402079713,1768512641370,-1000.0,0.00017521,2]
[402079714,1768512641380,-1000.0,0.00017521,2]
[402079715,1768512641389,-1000.0,0.00017521,2]
[402079716,1768512641400,-1000.0,0.00017521,2]
[402079717,1768512641409,-1000.0,0.00017521,2]
[402079718,1768512641418,-403.28870191,0.00017521,2]
[402079719,1768512641429,-500.0,0.00017521,2]
[402079720,1768512641438,-1000.0,0.00017521,2]
[402079721,1768512641447,-1000.0,0.00017521,2]
[402079722,1768512641456,-1000.0,0.00017521,2]
[402079723,1768512641465,-343.36959723,0.00017521,2]
[402079724,1768512641474,-1088.76833495,0.00017521,2]
[402079725,1768512641483,-1000.0,0.00017521,2]
[402079726,1768512641493,-501.13499873,0.00017521,2]
[402079727,1768512641502,-16887.39851566,0.00017523,2]
[402079728,1768512641511,-446.97,0.00017548,2]
[402079729,1768512641522,-301.69227512,0.00017551,2]
[402079730,1768512641533,-200.0,0.00017551,2]
[402079731,1768512641542,-500.0,0.00017551,2]
[402079732,1768512641551,-1848.38690317,0.00017555,2]
[402079733,1768512641560,-954.62755545,0.00017558,2]
[402079734,1768512641569,-195.0,0.000176,2]
[402079735,1768512641579,-250.0,0.000176,2]
[402079736,1768512641587,-245.2,0.00017643,2]
[402079737,1768512641596,-5789.0,0.00017644,2]
[402079738,1768512641606,-1756.5,0.00017651,2]
[402079739,1768512641617,-2274.62500589,0.00017656,2]
[402079740,1768512641628,-5789.0,0.00017687,2]
[402079741,1768512641637,-5789.0,0.00017694,2]
[402079742,1768512641646,-16887.39851566,0.00017711,2]
[402079743,1768512641656,-2274.62500589,0.00017728,2]
[402079744,1768512641666,-5789.0,0.00017752,2]
[402079745,1768512641677,-26626.4333284,0.000178,2]
[402079746,1768512641687,-446.97,0.00017822,2]
[402079747,1768512641698,-866.0,0.00017845,2]
[402079748,1768512641708,-500.0,0.00017849,2]
[402079749,1768512641718,-500.0,0.00017849,2]
[402079750,1768512641727,-5789.0,0.00017857,2]
[402079751,1768512641737,-1000.0,0.00017863,2]
[402079752,1768512641746,-5789.0,0.00017879,2]
[402079753,1768512641755,-173.12624248,0.000179,2]
[402079754,1768512641765,-3157.83657888,0.000179,2]
[402079755,1768512641774,-16887.39851566,0.000179,2]
[402079756,1768512641784,-180.08839978,0.000179,2]
[402079757,1768512641794,-5789.0,0.00017905,2]
[402079758,1768512641803,-5789.0,0.00017921,2]
[402079759,1768512641813,-1756.5,0.00017925,2]
[402079760,1768512641823,-500.0,0.00017972,2]
[402079761,1768512641833,-565.99630462,0.00017972,2]
[402079762,1768512641844,-500.0,0.00017972,2]
[402079763,1768512641854,-500.0,0.00017973,2]
[402079764,1768512641864,-500.0,0.00017973,2]
[402079765,1768512641875,-500.0,0.00017973,2]
[402079766,1768512641884,-500.0,0.00017973,2]
[402079767,1768512641894,-150.0,0.00017973,2]
[402079768,1768512641904,-500.0,0.00017973,2]
[402079769,1768512641914,-500.0,0.00017973,2]
[402079770,1768512641924,-500.0,0.00017973,2]
[402079771,1768512641933,-500.0,0.00017973,2]
[402079772,1768512641943,-500.0,0.00017973,2]
[402079773,1768512641953,-500.0,0.00017973,2]
[402079774,1768512641961,-500.0,0.00017973,2]
[402079775,1768512641971,-500.0,0.00017973,2]
[402079776,1768512641980,-500.0,0.00017973,2]
[402079777,1768512641990,-500.0,0.00017973,2]
[402079778,1768512642000,-500.0,0.00017973,2]
[402079779,1768512642011,-500.0,0.00017973,2]
[402079780,1768512642020,-500.0,0.00017973,2]
[402079781,1768512642030,-500.0,0.00017973,2]
[402079782,1768512642040,-500.0,0.00017973,2]
[402079783,1768512642051,-500.0,0.00017973,2]
[402079784,1768512642060,-500.0,0.00017973,2]
[402079785,1768512642070,-500.0,0.00017973,2]
[402079786,1768512642080,-500.0,0.00017973,2]
[402079787,1768512642089,-500.0,0.00017973,2]
[402079788,1768512642098,-500.0,0.00017973,2]
[402079789,1768512642107,-500.0,0.00017973,2]
[402079790,1768512642116,-500.0,0.00017973,2]
[402079791,1768512642125,-500.0,0.00017973,2]
[402079792,1768512642134,-500.0,0.00017973,2]
[402079793,1768512642143,-500.0,0.00017973,2]
[402079794,1768512642152,-500.0,0.00017973,2]
[402079795,1768512642162,-500.0,0.00017973,2]
[402079796,1768512642171,-500.73390845,0.00017973,2]
[402079797,1768512642180,-500.0,0.00017973,2]
[402079798,1768512642190,-500.0,0.00017973,2]
[402079799,1768512642200,-500.0,0.00017973,2]
[402079800,1768512642212,-819.16663093,0.0001799,2]
[402079801,1768512642221,-819.16663093,0.0001799,2]
[402079802,1768512642231,-600.0,0.0001799,2]
[402079803,1768512642240,-500.0,0.00017999,2]
[402079804,1768512642250,-500.0,0.00017999,2]
[402079805,1768512642259,-214.30030878,0.00017999,2]
[402079806,1768512642268,-300.0,0.00017999,2]
[402079807,1768512642277,-500.0,0.00017999,2]
[402079808,1768512642286,-500.0,0.00017999,2]
[402079809,1768512642296,-500.0,0.00017999,2]
[402079810,1768512642305,-500.0,0.00017999,2]
[402079811,1768512642315,-500.0,0.00017999,2]
[402079812,1768512642324,-500.0,0.00017999,2]
[402079813,1768512642334,-500.0,0.00017999,2]
[402079814,1768512642344,-500.0,0.00017999,2]
[402079815,1768512642356,-500.0,0.00017999,2]
[402079816,1768512642369,-500.0,0.00017999,2]
[402079817,1768512642378,-3075259.43165729,0.00018,2]
[402079818,1768512642431,-1560.09511782,0.00018,2]
[402079844,1768512643455,-1.7e-07,0.00016293,2]
[402079845,1768512643503,-298.89999983,0.00016293,2]
[402079846,1768512643513,-261.72910527,0.00018,2]
[402079847,1768512643523,-709.14195782,0.00018,2]
[402079848,1768512643534,-2175.0900035,0.00018,2]
[402079849,1768512643544,-16480.49999993,0.00018,2]
[402079850,1768512643557,-3865481.67204997,0.00018,2]
[402079851,1768512643566,-103464.83914837,0.00018,2]
[402079852,1768512643575,-889898.42181462,0.00018,2]
[402079853,1768512643584,-1401.09311542,0.00018,2]
[402079854,1768512643593,-151.0,0.00018,2]
[402079855,1768512643602,-151.0,0.00018,2]
[402079856,1768512643611,-223.155197,0.00018,2]
[402079857,1768512643620,-223.155197,0.00018,2]
[402079858,1768512643629,-223.155197,0.00018,2]
[402079859,1768512643638,-223.155197,0.00018,2]
[402079860,1768512643647,-151.0,0.00018,2]
[402079861,1768512643657,-501.32992223,0.00018068,2]
[402079863,1768512643666,-1500.0,0.00018068,2]
[402079864,1768512643676,-1500.0,0.00018068,2]
[402079865,1768512643685,-1500.0,0.00018068,2]
[402079866,1768512643695,-1500.0,0.00018068,2]
[402079867,1768512643704,-1500.0,0.00018068,2]
[402079868,1768512643714,-924.12086977,0.00018068,2]
[402079869,1768512643723,-1500.0,0.00018068,2]
[402079870,1768512643733,-248.72844434,0.00018099,2]
[402079871,1768512643742,-500.0,0.00018099,2]
[402079872,1768512643752,-500.0,0.00018099,2]
[402079873,1768512643762,-500.0,0.00018099,2]
[402079874,1768512643771,-1777.15175269,0.000181,2]
[402079875,1768512643781,-195.0,0.000181,2]
[402079876,1768512643790,-300.0,0.000181,2]
[402079877,1768512643800,-600.0,0.000181,2]
[402079878,1768512643810,-193.0,0.000181,2]
[402079879,1768512643819,-587.0,0.0001814,2]
[402079880,1768512643829,-5789.0,0.00018144,2]
[402079881,1768512643838,-1756.5,0.00018199,2]
[402079882,1768512643848,-3053.17,0.00018238,2]
[402079883,1768512643858,-5789.0,0.00018272,2]
[402079884,1768512643867,-5789.0,0.00018301,2]
[402079885,1768512643877,-2351.0,0.00018324,2]
[402079886,1768512643887,-1049.4,0.00018331,2]
[402079887,1768512643897,-88340.9,0.00018356,2]
[402079888,1768512643907,-5789.0,0.00018467,2]
[402079889,1768512643917,-1756.5,0.00018473,2]
[402079890,1768512643927,-1000.0,0.00018521,2]
[402079891,1768512643936,-1000.0,0.00018521,2]
[402079892,1768512643945,-1000.0,0.00018521,2]
[402079893,1768512643955,-250.0,0.00018521,2]
[402079894,1768512643964,-1000.0,0.00018521,2]
[402079895,1768512643974,-1000.0,0.00018521,2]
[402079896,1768512643984,-512.58675801,0.00018521,2]
[402079897,1768512643993,-1000.0,0.00018521,2]
[402079898,1768512644003,-1000.0,0.00018521,2]
[402079899,1768512644012,-1000.0,0.00018521,2]
[402079900,1768512644021,-1000.0,0.00018521,2]
[402079901,1768512644030,-1000.0,0.00018521,2]
[402079902,1768512644041,-727.35473461,0.00018521,2]
[402079903,1768512644050,-1000.0,0.00018521,2]
[402079904,1768512644059,-386.68582659,0.00018521,2]
[402079905,1768512644069,-1000.0,0.00018521,2]
[402079906,1768512644080,-1000.0,0.00018521,2]
[402079907,1768512644090,-1116.7339851,0.00018521,2]
[402079908,1768512644101,-359.60486913,0.00018521,2]
[402079909,1768512644110,-516.71634073,0.00018521,2]
[402079910,1768512644119,-1000.0,0.00018521,2]
[402079911,1768512644129,-1000.0,0.00018521,2]
[402079912,1768512644138,-1000.0,0.00018521,2]
[402079913,1768512644147,-1000.0,0.00018521,2]
[402079914,1768512644156,-1000.0,0.00018521,2]
[402079915,1768512644165,-1000.0,0.00018521,2]
[402079916,1768512644174,-1000.0,0.00018521,2]
[402079917,1768512644184,-1000.0,0.00018521,2]
[402079918,1768512644193,-1000.0,0.00018521,2]
[402079919,1768512644202,-1000.0,0.00018521,2]
[402079920,1768512644211,-1000.0,0.00018521,2]
[402079921,1768512644221,-353.0517463,0.00018521,2]
[402079922,1768512644230,-1000.0,0.00018521,2]
[402079923,1768512644239,-245.2,0.00018525,2]
[402079924,1768512644249,-5789.0,0.00018539,2]
[402079925,1768512644259,-2000.0,0.00018616,2]
[402079926,1768512644271,-500.0,0.00018616,2]
[402079927,1768512644286,-1003.12055844,0.00018616,2]
[402079928,1768512644298,-500.0,0.00018616,2]
[402079929,1768512644307,-1000.0,0.00018616,2]
[402079930,1768512644317,-2000.0,0.00018616,2]
[402079931,1768512644326,-542.41651082,0.00018647,2]
[402079932,1768512644336,-5789.0,0.00018676,2]
[402079933,1768512644346,-5789.0,0.00018684,2]
[402079934,1768512644359,-1756.5,0.00018747,2]
[402079935,1768512644369,-500.0,0.00018766,2]
[402079936,1768512644382,-151.2,0.000188,2]
[402079937,1768512644391,-151.2,0.000188,2]
[402079938,1768512644403,-151.2,0.000188,2]
[402079939,1768512644414,-151.2,0.000188,2]
[402079940,1768512644425,-151.2,0.000188,2]
[402079941,1768512644435,-151.2,0.000188,2]
[402079942,1768512644444,-151.2,0.000188,2]
[402079943,1768512644453,-151.2,0.000188,2]
[402079944,1768512644463,-151.2,0.000188,2]
[402079945,1768512644473,-151.2,0.000188,2]
[402079946,1768512644482,-151.2,0.000188,2]
[402079947,1768512644491,-151.2,0.000188,2]
[402079948,1768512644501,-151.2,0.000188,2]
[402079949,1768512644510,-151.2,0.000188,2]
[402079950,1768512644519,-151.2,0.000188,2]
[402079951,1768512644529,-151.2,0.000188,2]
[402079952,1768512644538,-151.2,0.000188,2]
[402079953,1768512644548,-151.2,0.000188,2]
[402079954,1768512644557,-151.2,0.000188,2]
[402079955,1768512644567,-151.2,0.000188,2]
[402079956,1768512644577,-151.2,0.000188,2]
[402079957,1768512644587,-151.2,0.000188,2]
[402079958,1768512644596,-151.2,0.000188,2]
[402079959,1768512644606,-151.2,0.000188,2]
[402079960,1768512644615,-151.2,0.000188,2]
[402079961,1768512644625,-151.2,0.000188,2]
[402079962,1768512644635,-151.2,0.000188,2]
[402079963,1768512644648,-151.2,0.000188,2]
[402079964,1768512644658,-151.2,0.000188,2]
[402079965,1768512644667,-151.2,0.000188,2]
[402079966,1768512644677,-151.2,0.000188,2]
[402079967,1768512644687,-151.2,0.000188,2]
[402079968,1768512644697,-151.44482603,0.00018922,5]
[402079969,1768512644707,-300.0,0.00019,2]
[402079970,1768512644717,-391.70336097,0.00019,2]
[402079971,1768512644727,-5161.9002297,0.00019,2]
[402079972,1768512644737,-1756.5,0.00019021,2]
[402079973,1768512644746,-435.0100479,0.00019068,2]
[402079974,1768512644756,-1000.0,0.00019068,2]
[402079975,1768512644766,-1000.0,0.00019068,2]
[402079976,1768512644776,-1126.49258738,0.00019068,2]
[402079977,1768512644785,-200.0,0.00019068,2]
[402079978,1768512644795,-1000.0,0.00019068,2]
[402079979,1768512644807,-1500.0,0.00019068,2]
[402079980,1768512644817,-1500.0,0.00019068,2]
[402079981,1768512644826,-1000.0,0.00019068,2]
[402079982,1768512644840,-1500.0,0.00019068,2]
[402079983,1768512644851,-1603.72905413,0.00019068,2]
[402079984,1768512644861,-1038.06736554,0.00019068,2]
[402079985,1768512644871,-1500.0,0.00019068,2]
[402079986,1768512644881,-1500.0,0.00019068,2]
[402079987,1768512644891,-1500.0,0.00019068,2]
[402079988,1768512644901,-1000.0,0.00019068,2]
[402079989,1768512644911,-1000.0,0.00019068,2]
[402079990,1768512644922,-1000.0,0.00019068,2]
[402079991,1768512644932,-500.0,0.00019068,2]
[402079992,1768512644942,-1000.0,0.00019068,2]
[402079993,1768512644952,-1150.0,0.00019068,2]
[402079994,1768512644962,-1500.0,0.00019068,2]
[402079995,1768512644971,-1000.0,0.00019068,2]
[402079996,1768512644981,-1000.0,0.00019068,2]
[402079997,1768512644991,-1500.0,0.00019068,2]
[402079998,1768512645000,-777.82798039,0.00019068,2]
[402079999,1768512645010,-200.18597771,0.00019082,2]
[402080000,1768512645020,-1473.0,0.00019134,2]
[402080001,1768512645034,-2500.0,0.00019164,2]
[402080002,1768512645044,-2500.0,0.00019164,2]
[402080003,1768512645055,-161.75279423,0.00019178,2]
[402080004,1768512645065,-907.0,0.00019178,2]
[402080005,1768512645075,-1756.5,0.00019295,2]
[402080006,1768512645084,-245.2,0.00019407,2]
[402080007,1768512645094,-1756.5,0.00019569,2]
[402080008,1768512645104,-523.59280854,0.00019616,2]
[402080009,1768512645113,-266.18203271,0.00019616,2]
[402080010,1768512645124,-536.32316389,0.00019616,2]
[402080011,1768512645133,-3000.0,0.00019712,2]
[402080012,1768512645143,-3000.0,0.00019712,2]
[402080013,1768512645153,-9000.0,0.00019748,2]
[402080014,1768512645163,-9000.0,0.00019748,2]
[402080015,1768512645327,-322.6107,0.00019748,2]
[402080016,1768512645337,-578.20924308,0.00019748,2]
[402080017,1768512645346,-500.0,0.00019748,2]
[402080018,1768512645357,-151.0,0.00019748,2]
[402080019,1768512645366,-500.0,0.00019748,2]
[402080020,1768512645375,-3000.0,0.00019748,2]
[402080021,1768512645387,-151.0,0.00019748,2]
[402080022,1768512645397,-500.0,0.00019748,2]
[402080023,1768512645407,-3000.0,0.00019748,2]
[402080024,1768512645416,-156.587,0.00019748,2]
[402080025,1768512645426,-500.0,0.00019748,2]
[402080026,1768512645436,-3000.0,0.00019748,2]
[402080027,1768512645445,-162.380719,0.00019748,2]
[402080028,1768512645454,-3000.0,0.00019748,2]
[402080029,1768512645464,-500.0,0.00019748,2]
[402080030,1768512645473,-155.82642991,0.00019748,2]
[402080031,1768512645482,-3000.0,0.00019748,2]
[402080032,1768512645491,-500.0,0.00019748,2]
[402080033,1768512645501,-3000.0,0.00019748,2]
[402080034,1768512645511,-500.0,0.00019748,2]
[402080035,1768512645521,-3000.0,0.00019748,2]
[402080036,1768512645530,-500.0,0.00019748,2]
[402080037,1768512645539,-500.0,0.00019748,2]
[402080038,1768512645549,-3000.0,0.00019748,2]
[402080039,1768512645558,-3000.0,0.00019748,2]
[402080040,1768512645568,-500.0,0.00019748,2]
[402080041,1768512645577,-500.0,0.00019748,2]
[402080042,1768512645587,-3000.0,0.00019748,2]
[402080043,1768512645596,-3000.0,0.00019748,2]
[402080044,1768512645606,-464.19143741,0.00019748,2]
[402080045,1768512645616,-500.0,0.00019748,2]
[402080046,1768512645626,-3000.0,0.00019748,2]
[402080047,1768512645636,-3000.0,0.00019748,2]
[402080048,1768512645647,-500.0,0.00019748,2]
[402080049,1768512645656,-3000.0,0.00019748,2]
[402080050,1768512645665,-3000.0,0.00019748,2]
[402080051,1768512645675,-500.0,0.00019748,2]
[402080052,1768512645686,-3000.0,0.00019748,2]
[402080053,1768512645695,-500.0,0.00019748,2]
[402080054,1768512645705,-3000.0,0.00019748,2]
[402080055,1768512645714,-500.0,0.00019748,2]
[402080056,1768512645724,-3000.0,0.00019748,2]
[402080057,1768512645734,-500.0,0.00019748,2]
[402080058,1768512645743,-3000.0,0.00019748,2]
[402080059,1768512645753,-500.0,0.00019748,2]
[402080060,1768512645763,-3000.0,0.00019748,2]
[402080061,1768512645773,-500.0,0.00019748,2]
[402080062,1768512645792,-3000.0,0.00019748,2]
[402080063,1768512645802,-500.0,0.00019748,2]
[402080064,1768512645812,-3000.0,0.00019748,2]
[402080065,1768512645821,-721.12765535,0.00019748,2]
[402080066,1768512645831,-1056.37014812,0.00019748,2]
[402080067,1768512645841,-500.0,0.00019748,2]
[402080068,1768512645851,-500.0,0.00019748,2]
[402080069,1768512645860,-500.0,0.00019748,2]
[402080070,1768512645870,-174.61919141,0.00019748,2]
[402080071,1768512645879,-500.0,0.00019748,2]
[402080072,1768512645889,-500.0,0.00019748,2]
[402080073,1768512645898,-500.0,0.00019748,2]
[402080074,1768512645908,-500.0,0.00019748,2]
[402080075,1768512645918,-500.0,0.00019748,2]
[402080076,1768512645927,-500.0,0.00019748,2]
[402080077,1768512645937,-589.66560827,0.00019748,2]
[402080078,1768512645946,-2500.0,0.00019748,2]
[402080079,1768512645956,-2500.0,0.00019748,2]
[402080080,1768512645966,-500.0,0.00019748,2]
[402080081,1768512645975,-500.0,0.00019748,2]
[402080082,1768512645985,-2500.0,0.00019748,2]
[402080083,1768512645995,-500.0,0.00019748,2]
[402080085,1768512646005,-2500.0,0.00019748,2]
[402080086,1768512646016,-500.0,0.00019748,2]
[402080087,1768512646025,-2500.0,0.00019748,2]
[402080088,1768512646035,-500.0,0.00019748,2]
[402080089,1768512646045,-2500.0,0.00019748,2]
[402080090,1768512646056,-500.0,0.00019748,2]
[402080091,1768512646066,-2500.0,0.00019748,2]
[402080092,1768512646076,-500.0,0.00019748,2]
[402080093,1768512646086,-2500.0,0.00019748,2]
[402080094,1768512646096,-500.0,0.00019748,2]
[402080095,1768512646105,-2500.0,0.00019748,2]
[402080096,1768512646115,-500.0,0.00019748,2]
[402080097,1768512646124,-500.0,0.00019748,2]
[402080098,1768512646134,-2500.0,0.00019748,2]
[402080099,1768512646144,-500.0,0.00019748,2]
[402080100,1768512646155,-500.0,0.00019748,2]
[402080101,1768512646165,-2500.0,0.00019748,2]
[402080102,1768512646175,-500.0,0.00019748,2]
[402080103,1768512646186,-500.0,0.00019748,2]
[402080104,1768512646196,-2000.0,0.00019748,2]
[402080105,1768512646205,-500.0,0.00019748,2]
[402080106,1768512646215,-2000.0,0.00019748,2]
[402080107,1768512646225,-500.0,0.00019748,2]
[402080108,1768512646235,-2000.0,0.00019748,2]
[402080109,1768512646245,-500.0,0.00019748,2]
[402080110,1768512646255,-2000.0,0.00019748,2]